fUSD/lending_fUSD_20250629
["ID","MTS","AMOUNT","RATE_DAILY","PERIOD"]
[368529309,1751196640047,-500.0,0.00026426,2]
[368529311,1751196640056,-500.0,0.00026426,2]
[368529313,1751196640065,-500.0,0.00026426,2]
[368529338,1751196640073,-500.0,0.00026426,2]
[368529341,1751196640309,-500.0,0.00026426,2]
[368529343,1751196640319,-500.0,0.00026426,2]
[368529345,1751196640328,-300.0,0.00026426,2]
[368529347,1751196640337,-300.0,0.00026426,2]
[368529349,1751196640346,-300.0,0.00026426,2]
[368529351,1751196640355,-300.0,0.00026426,2]
[368529353,1751196640365,-300.0,0.00026426,2]
[368529355,1751196640374,-300.0,0.00026426,2]
[368529357,1751196640384,-300.0,0.00026426,2]
[368529359,1751196640393,-300.0,0.00026426,2]
[368529361,1751196640402,-300.0,0.00026426,2]
[368529363,1751196640411,-300.0,0.00026426,2]
[368529365,1751196640420,-300.0,0.00026426,2]
[368529367,1751196640431,-300.0,0.00026426,2]
[368529369,1751196640442,-23900.0,0.00026442,2]
[368529371,1751196640451,-937.51543388,0.00026486,15]
[368529373,1751196640460,-873.33,0.00026519,2]
[368529375,1751196640469,-167.3,0.0002667,2]
[368529377,1751196640479,-374.96,0.00026676,2]
[368529379,1751196640487,-189.52,0.00026684,2]
[368529381,1751196640497,-800.0,0.000269,9]
[368529383,1751196640506,-1000.0,0.0002727,2]
[368529385,1751196640515,-1885.7953,0.0002727,2]
[368529387,1751196640524,-1000.0,0.00027279,2]
[368529389,1751196640533,-181.03817014,0.00027283,2]
[368529391,1751196640542,-500.0,0.00027296,2]
[368529393,1751196640551,-32387.3025,0.00027296,2]
[368529395,1751196640560,-14676.5116,0.00027296,2]
[368529397,1751196640569,-5000.0,0.00027297,2]
[368529399,1751196640579,-216.21337961,0.00027297,2]
[368529401,1751196640588,-937.51543388,0.00027314,16]
[368529403,1751196640597,-233.87879828,0.00027373,2]
[368529405,1751196640606,-595.43,0.0002738,2]
[368529407,1751196640615,-237786.30966357,0.00027382,7]
[368529468,1751196641194,-1059.62935727,0.00027382,7]
[368529491,1751196641549,-1640.775,0.00027382,7]
[368529620,1751196642729,-900.0,0.00027382,7]
[368529644,1751196642991,-5815.60309588,0.00027382,7]
[368529646,1751196643002,-5973.73520621,0.00027382,7]
[368529650,1751196643033,-725.08423748,0.00027382,7]
[368529653,1751196643048,-391.04009748,0.00027382,7]
[368530032,1751196646721,-196.24762532,0.000179,2]
[368530034,1751196646731,-13708.94067002,0.00027382,7]
[368530049,1751196646906,-174916.71952503,0.00027382,7]
[368531042,1751196731457,526.0,0.0002739,120]
[368531043,1751196734628,468.0,0.0002739,120]
[368531044,1751196736312,327.0,0.0002739,120]
[368531046,1751196908224,8404.31,7.945e-05,2]
[368531054,1751197228638,594.0,0.00027397,120]
[368531056,1751197485078,-345.27,0.00013699,2]
[368531057,1751197485106,-250.0,0.00013836,2]
[368531058,1751197485135,-300.0,0.00013973,2]
[368531059,1751197485164,-300.0,0.00014247,2]
[368531060,1751197485192,-300.0,0.00015068,2]
[368531061,1751197485223,-250.0,0.00015068,2]
[368531062,1751197485253,-250.0,0.00015068,2]
[368531063,1751197485281,-973.96110716,0.00015355,2]
[368531064,1751197485308,-1000.0,0.0001537,3]
[368531065,1751197485337,-300.0,0.0001537,2]
[368531068,1751197763759,328.0,0.00013699,2]
[368531069,1751197769925,-300.0,0.00016398,2]
[368531070,1751197769953,-187.16,0.00016712,2]
[368531071,1751197769981,-500.0,0.00018548,2]
[368531072,1751197770009,-500.0,0.00019068,2]
[368531073,1751197770037,-195.74005047,0.00019178,2]
[368531074,1751197770065,-500.0,0.00020082,2]
[368531075,1751197770094,-328.0,0.00020187,2]
[368531076,1751197770122,-500.0,0.00021041,2]
[368531077,1751197770150,-7000.0,0.0002123,2]
[368531078,1751197770178,-172.55,0.00021829,2]
[368531079,1751197770206,-7000.0,0.0002223,2]
[368531080,1751197770236,-507.0,0.00022518,2]
[368531081,1751197770519,-7000.0,0.0002323,2]
[368531082,1751197770550,-500.0,0.0002326,2]
[368531083,1751197770588,-605.17991647,0.000234,9]
[368531084,1751197770622,-605.17991646,0.00023452,9]
[368531085,1751197770652,-202.0,0.00023485,2]
[368531086,1751197770683,-1200.0,0.00023498,2]
[368531087,1751197770714,-943.8,0.00023606,2]
[368531088,1751197770743,-275.43,0.00023655,2]
[368531089,1751197770773,-328.89,0.00023705,2]
[368531090,1751197770803,-500.0,0.0002379,2]
[368531091,1751197770834,-167.01,0.00023823,2]
[368531092,1751197770865,-170.68,0.00023828,2]
[368531093,1751197770895,-250.0,0.00023882,2]
[368531094,1751197770927,-605.17991646,0.00024003,10]
[368531095,1751197770957,-636.64,0.00024026,2]
[368531096,1751197770987,-636.64,0.00024032,2]
[368531097,1751197771015,-636.64,0.00024038,2]
[368531098,1751197771045,-249.0,0.00024044,2]
[368531099,1751197771074,-636.64,0.00024045,2]
[368531100,1751197771104,-636.64,0.00024051,2]
[368531101,1751197771135,-636.64,0.00024057,2]
[368531102,1751197771166,-636.64,0.00024064,2]
[368531103,1751197771195,-636.64,0.0002407,2]
[368531104,1751197771224,-636.64,0.00024076,2]
[368531105,1751197771253,-636.64,0.00024083,2]
[368531106,1751197771481,-636.64,0.00024089,2]
[368531107,1751197771509,-636.64,0.00024095,2]
[368531108,1751197771538,-1749.05171622,0.000241,2]
[368531109,1751197771567,-636.64,0.00024102,2]
[368531110,1751197771596,-636.64,0.00024108,2]
[368531111,1751197771624,-636.64,0.00024114,2]
[368531112,1751197771654,-636.64,0.00024121,2]
[368531113,1751197771683,-636.64,0.00024127,2]
[368531114,1751197771712,-636.64,0.00024133,2]
[368531115,1751197771742,-636.64,0.0002414,2]
[368531116,1751197771771,-636.64,0.00024146,2]
[368531117,1751197771800,-7000.0,0.0002423,2]
[368531118,1751197771828,-227.46,0.00024235,2]
[368531119,1751197771856,-1000.0,0.00024489,2]
[368531120,1751197771889,-605.17991646,0.00024555,11]
[368531121,1751197771918,-966.17,0.00024644,2]
[368531122,1751197771946,-200.0,0.00024644,7]
[368531123,1751197771975,-200.0,0.00024667,2]
[368531124,1751197772067,-16100.0,0.00024695,2]
[368531125,1751197772550,-7800.0,0.00024695,2]
[368531126,1751197772578,-166.7,0.00024753,2]
[368531127,1751197772606,-1000.0,0.00024876,2]
[368531128,1751197772636,-440.0,0.00024943,2]
[368531129,1751197772664,-253.22,0.0002507,2]
[368531130,1751197772692,-150.0,0.0002507,2]
[368531131,1751197772724,-605.17991646,0.00025107,12]
[368531132,1751197772752,-7000.0,0.0002523,2]
[368531133,1751197772781,-507.0,0.00025401,6]
[368531134,1751197772811,-461.0,0.00025524,2]
[368531135,1751197772840,-1553.80016708,0.00025613,2]
[368531136,1751197773060,-126.19983292,0.00025613,2]
[368531137,1751197773093,-605.17991646,0.00025659,13]
[368531138,1751197773125,-461.0,0.00025663,7]
[368531139,1751197773157,-440.0,0.00025773,7]
[368531140,1751197773187,-461.0,0.00025902,2]
[368531141,1751197773215,-1000.0,0.00025912,2]
[368531142,1751197773244,-636.99495754,0.00025912,2]
[368531143,1751197773274,-207.4,0.00025912,2]
[368531144,1751197773305,-500.0,0.00025912,2]
[368531145,1751197773337,-500.0,0.00025912,2]
[368531146,1751197773366,-500.0,0.00025912,2]
[368531147,1751197773397,-500.0,0.00025912,2]
[368531148,1751197773427,-347.99250985,0.00025912,2]
[368531149,1751197773456,-500.0,0.00025912,2]
[368531150,1751197773485,-500.0,0.00025912,2]
[368531151,1751197773514,-198.97225457,0.00025912,2]
[368531152,1751197773544,-6912.642,0.00025912,2]
[368531153,1751197773573,-500.0,0.00025912,2]
[368531154,1751197773602,-500.0,0.00025912,2]
[368531155,1751197773632,-439.07872135,0.00025912,2]
[368531156,1751197773661,-206.73034952,0.00025912,2]
[368531157,1751197773689,-668.65185757,0.00025912,2]
[368531158,1751197774403,-7168.409754,0.00025967,2]
[368531159,1751197774432,-461.0,0.00026198,2]
[368531160,1751197774464,-605.17991646,0.0002621,14]
[368531161,1751197774728,-7000.0,0.0002623,2]
[368531162,1751197774756,-436.66,0.00026388,2]
[368531163,1751197774784,-649.04009511,0.00026611,2]
[368531164,1751197774812,-328.0,0.00026676,2]
[368531165,1751197774844,-605.17991646,0.00026762,15]
[368531166,1751197774872,-600.0,0.000268,9]
[368531167,1751197774900,-1300.0,0.000269,9]
[368531168,1751197774928,-649.04009511,0.00027022,2]
[368531169,1751197775141,-461.0,0.00027231,7]
[368531170,1751197775171,-888.0,0.00027268,2]
[368531171,1751197775199,-6775.5393,0.00027277,2]
[368531172,1751197775227,-215.0738,0.00027281,2]
[368531173,1751197775255,-1924.81988035,0.00027287,2]
[368531174,1751197775284,-150.0,0.0002729,2]
[368531175,1751197775317,-184.97503748,0.0002729,2]
[368531176,1751197775346,-228.80045739,0.0002729,2]
[368531177,1751197775374,-2039.01653435,0.00027294,2]
[368531178,1751197775404,-1000.0,0.00027297,2]
[368531179,1751197775433,-5000.0,0.00027297,2]
[368531181,1751197775463,-157.28963422,0.00027297,2]
[368531183,1751197775490,-294.00809102,0.00027297,2]
[368531184,1751197775518,-194.39470129,0.00027297,2]
[368531185,1751197775552,-368.98521134,0.00027314,16]
[368531186,1751197775783,-236.19470512,0.00027314,16]
[368531187,1751197775811,-350.0,0.00027353,2]
[368531188,1751197775838,-185.95237493,0.00027353,2]
[368531189,1751197775866,-500.0,0.00027373,2]
[368531190,1751197775894,-500.0,0.00027373,2]
[368531191,1751197775922,-500.0,0.00027373,2]
[368531192,1751197775950,-500.0,0.00027373,2]
[368531193,1751197775978,-500.0,0.00027373,2]
[368531194,1751197776005,-500.0,0.00027373,2]
[368531195,1751197776034,-500.0,0.00027373,2]
[368531196,1751197776061,-500.0,0.00027373,2]
[368531197,1751197776088,-500.0,0.00027373,2]
[368531198,1751197776118,-150.0,0.00027375,2]
[368531199,1751197776147,-926.56,0.00027377,2]
[368531200,1751197776175,-926.56,0.00027377,2]
[368531201,1751197776202,-926.56,0.00027377,2]
[368531202,1751197776230,-334.37454839,0.00027386,2]
[368531203,1751197776257,-216.64804314,0.00027386,2]
[368531204,1751197776287,-500.0,0.00027386,2]
[368531205,1751197776321,-500.0,0.00027386,2]
[368531206,1751197776351,-500.0,0.00027386,2]
[368531207,1751197776378,-500.0,0.00027386,2]
[368531208,1751197776405,-500.0,0.00027386,2]
[368531209,1751197776434,-500.0,0.00027386,2]
[368531210,1751197776462,-358.17077024,0.00027386,2]
[368531211,1751197776491,-318.02516625,0.00027386,2]
[368531212,1751197776520,-500.0,0.00027386,2]
[368531213,1751197776548,-345.00193058,0.00027386,2]
[368531214,1751197776579,-500.0,0.00027386,2]
[368531215,1751197776608,-500.0,0.00027386,2]
[368531216,1751197776638,-500.0,0.00027386,2]
[368531217,1751197776666,-469.74375828,0.00027386,2]
[368531218,1751197776696,-500.0,0.00027386,2]
[368531219,1751197776725,-500.0,0.00027386,2]
[368531220,1751197776755,-500.0,0.00027386,2]
[368531221,1751197776785,-500.0,0.00027386,2]
[368531222,1751197776816,-500.0,0.00027386,2]
[368531223,1751197776846,-500.0,0.00027386,2]
[368531224,1751197776876,-500.0,0.00027386,2]
[368531225,1751197776905,-500.0,0.00027386,2]
[368531226,1751197776932,-500.0,0.00027386,2]
[368531227,1751197776962,-107.08119291,0.00027386,2]
[368531228,1751197777211,-298.25502032,0.00027386,2]
[368531229,1751197777241,-500.0,0.00027386,2]
[368531230,1751197777270,-500.0,0.00027386,2]
[368531231,1751197777303,-500.0,0.00027386,2]
[368531232,1751197777330,-500.0,0.00027386,2]
[368531233,1751197777360,-500.0,0.00027386,2]
[368531234,1751197777390,-500.0,0.00027386,2]
[368531235,1751197777419,-500.0,0.00027386,2]
[368531236,1751197777450,-500.0,0.00027386,2]
[368531237,1751197777478,-500.0,0.00027386,2]
[368531238,1751197777509,-500.0,0.00027386,2]
[368531239,1751197777538,-500.0,0.00027386,2]
[368531240,1751197777569,-500.0,0.00027386,2]
[368531241,1751197777598,-500.0,0.00027386,2]
[368531242,1751197777627,-500.0,0.00027386,2]
[368531243,1751197777657,-500.0,0.00027386,2]
[368531244,1751197777687,-500.0,0.00027386,2]
[368531245,1751197777718,-500.0,0.00027386,2]
[368531246,1751197777749,-500.0,0.00027386,2]
[368531247,1751197777779,-500.0,0.00027386,2]
[368531248,1751197777810,-500.0,0.00027386,2]
[368531249,1751197777840,-500.0,0.00027386,2]
[368531250,1751197777869,-500.0,0.00027386,2]
[368531251,1751197777899,-500.0,0.00027386,2]
[368531252,1751197777931,-500.0,0.00027386,2]
[368531253,1751197777961,-500.0,0.00027386,2]
[368531254,1751197777989,-500.0,0.00027386,2]
[368531255,1751197778018,-500.0,0.00027386,2]
[368531256,1751197778048,-500.0,0.00027386,2]
[368531257,1751197778078,-500.0,0.00027386,2]
[368531258,1751197778109,-500.0,0.00027386,2]
[368531259,1751197778138,-500.0,0.00027386,2]
[368531260,1751197778167,-500.0,0.00027386,2]
[368531261,1751197778196,-500.0,0.00027386,2]
[368531262,1751197778226,-500.0,0.00027386,2]
[368531263,1751197778256,-500.0,0.00027386,2]
[368531264,1751197778284,-500.0,0.00027386,2]
[368531265,1751197778318,-500.0,0.00027386,2]
[368531266,1751197778347,-150.0,0.00027386,2]
[368531267,1751197778377,-150.0,0.00027386,2]
[368531268,1751197778405,-188.8559598,0.00027387,2]
[368531269,1751197778433,-499.21803976,0.00027387,2]
[368531270,1751197778671,-427.34196024,0.00027387,2]
[368531271,1751197778700,-926.56,0.00027387,2]
[368531272,1751197785747,-73.44,0.00027387,2]
[368531273,1751197785762,-500.0,0.00027387,2]
[368531274,1751197785777,-500.0,0.00027387,2]
[368531275,1751197785791,-405.33621323,0.00027387,2]
[368531276,1751197786091,-298.25502032,0.00027387,2]
[368531277,1751197786108,-500.0,0.00027387,2]
[368531278,1751197786122,-500.0,0.00027387,2]
[368531279,1751197786136,-500.0,0.00027387,2]
[368531280,1751197786151,-500.0,0.00027387,2]
[368531281,1751197786168,-500.0,0.00027387,2]
[368531282,1751197786186,-500.0,0.00027387,2]
[368531283,1751197786199,-500.0,0.00027387,2]
[368531284,1751197786218,-500.0,0.00027387,2]
[368531285,1751197786237,-500.0,0.00027387,2]
[368531286,1751197786250,-500.0,0.00027387,2]
[368531287,1751197786264,-500.0,0.00027387,2]
[368531288,1751197786278,-500.0,0.00027387,2]
[368531289,1751197786292,-500.0,0.00027387,2]
[368531290,1751197786342,-500.0,0.00027387,2]
[368531291,1751197786418,-500.0,0.00027387,2]
[368531292,1751197786436,-500.0,0.00027387,2]
[368531293,1751197786454,-500.0,0.00027387,2]
[368531294,1751197786467,-500.0,0.00027387,2]
[368531295,1751197786481,-500.0,0.00027387,2]
[368531296,1751197786509,-500.0,0.00027387,2]
[368531297,1751197786523,-500.0,0.00027387,2]
[368531298,1751197786536,-500.0,0.00027387,2]
[368531299,1751197786554,-500.0,0.00027387,2]
[368531300,1751197786572,-500.0,0.00027387,2]
[368531301,1751197786585,-500.0,0.00027387,2]
[368531302,1751197786599,-500.0,0.00027387,2]
[368531303,1751197786613,-500.0,0.00027387,2]
[368531304,1751197786635,-500.0,0.00027387,2]
[368531305,1751197786648,-500.0,0.00027387,2]
[368531306,1751197786692,-500.0,0.00027387,2]
[368531307,1751197786767,-500.0,0.00027387,2]
[368531308,1751197786785,-500.0,0.00027387,2]
[368531309,1751197786801,-500.0,0.00027387,2]
[368531310,1751197786818,-500.0,0.00027387,2]
[368531311,1751197786835,-500.0,0.00027387,2]
[368531312,1751197786852,-500.0,0.00027387,2]
[368531313,1751197786868,-500.0,0.00027387,2]
[368531314,1751197786882,-150.0,0.00027387,2]
[368531315,1751197786896,-150.0,0.00027387,2]
[368531316,1751197786910,-188.8559598,0.00027387,2]
[368531317,1751197786923,-926.56,0.00027387,2]
[368531318,1751197786945,-427.34196024,0.00027387,2]
[368531319,1751197786961,-926.56,0.00027387,2]
[368531320,1751197786974,-37292.19607952,0.00027387,2]
[368531321,1751197787212,-40000.0,0.00027387,2]
[368531322,1751197787415,-40000.0,0.00027387,2]
[368531323,1751197787428,-40000.0,0.00027387,2]
[368531324,1751197787456,-32149.53612789,0.00027387,2]
[368531325,1751197787465,-5442.99202115,0.0002739,10]
[368531326,1751197787474,-1117.24423377,0.0002739,2]
[368531327,1751197787484,-155.491,0.00027396,2]
[368531328,1751197787493,-1134.73661719,0.00027397,2]
[368531329,1751197787507,-40000.0,0.00027397,2]
[368531330,1751197787544,-40000.0,0.00027397,2]
[368531331,1751197787637,-40000.0,0.00027397,2]
[368531332,1751197787899,-40000.0,0.00027397,2]
[368531333,1751197787913,-30002.19167227,0.00027397,2]
[368531334,1751197787922,-154.035192,0.00027397,3]
[368531335,1751197787932,-176.534859,0.00027397,3]
[368531336,1751197787941,-153.465382,0.00027397,3]
[368531337,1751197787951,-490.0,0.00027397,3]
[368531338,1751197787961,-490.0,0.00027397,3]
[368531339,1751197787970,-490.0,0.00027397,3]
[368531340,1751197787979,-164.60255,0.00027397,3]
[368531341,1751197787987,-490.0,0.00027397,3]
[368531342,1751197787996,-490.0,0.00027397,3]
[368531343,1751197788006,-292.491065,0.00027397,3]
[368531344,1751197788015,-490.0,0.00027397,3]
[368531345,1751197788024,-490.0,0.00027397,3]
[368531346,1751197788033,-490.0,0.00027397,3]
[368531347,1751197788043,-549.36560819,0.00027397,3]
[368531348,1751197788053,-151.0,0.00027397,7]
[368531349,1751197788063,-153.255392,0.00027397,3]
[368531350,1751197788075,-164.602549,0.00027397,3]
[368531351,1751197788084,-490.0,0.00027397,3]
[368531352,1751197788094,-490.0,0.00027397,3]
[368531353,1751197788103,-196.34021,0.00027397,3]
[368531354,1751197788113,-151.959342,0.00027397,3]
[368531355,1751197788123,-204.457716,0.00027397,3]
[368531356,1751197788132,-490.0,0.00027397,3]
[368531357,1751197788142,-490.0,0.00027397,3]
[368531358,1751197788152,-154.295125,0.00027397,3]
[368531359,1751197788161,-292.491065,0.00027397,3]
[368531360,1751197788171,-490.0,0.00027397,3]
[368531361,1751197788180,-490.0,0.00027397,3]
[368531362,1751197788190,-178.91227254,0.00027397,3]
[368531363,1751197788217,-311.08772746,0.00027397,3]
[368531364,1751197788227,-490.0,0.00027397,3]
[368531365,1751197788237,-490.0,0.00027397,3]
[368531366,1751197788246,-490.0,0.00027397,3]
[368531367,1751197788256,-490.0,0.00027397,3]
[368531368,1751197788266,-354.1478696,0.00027397,3]
[368531369,1751197788275,-490.0,0.00027397,3]
[368531370,1751197788284,-490.0,0.00027397,3]
[368531371,1751197788294,-153.035084,0.00027397,3]
[368531372,1751197788303,-490.0,0.00027397,3]
[368531373,1751197788314,-490.0,0.00027397,3]
[368531374,1751197788325,-490.0,0.00027397,3]
[368531375,1751197788336,-490.0,0.00027397,3]
[368531376,1751197788345,-490.0,0.00027397,3]
[368531377,1751197788355,-490.0,0.00027397,3]
[368531378,1751197788365,-490.0,0.00027397,3]
[368531379,1751197788374,-490.0,0.00027397,3]
[368531380,1751197788384,-490.0,0.00027397,3]
[368531381,1751197788395,-490.0,0.00027397,3]
[368531382,1751197788404,-490.0,0.00027397,3]
[368531383,1751197788414,-490.0,0.00027397,3]
[368531384,1751197788424,-676.06,0.00027397,3]
[368531385,1751197788434,-490.0,0.00027397,3]
[368531386,1751197788443,-490.0,0.00027397,3]
[368531387,1751197788453,-490.0,0.00027397,3]
[368531388,1751197788463,-490.0,0.00027397,3]
[368531389,1751197788472,-490.0,0.00027397,3]
[368531390,1751197788482,-490.0,0.00027397,3]
[368531391,1751197788492,-490.0,0.00027397,3]
[368531392,1751197788501,-490.0,0.00027397,3]
[368531393,1751197788511,-490.0,0.00027397,3]
[368531394,1751197788520,-490.0,0.00027397,3]
[368531395,1751197788530,-490.0,0.00027397,3]
[368531396,1751197788539,-536.42,0.00027397,3]
[368531397,1751197788548,-490.0,0.00027397,3]
[368531398,1751197788559,-490.0,0.00027397,3]
[368531399,1751197788568,-490.0,0.00027397,3]
[368531400,1751197788578,-490.0,0.00027397,3]
[368531401,1751197788587,-490.0,0.00027397,3]
[368531402,1751197788596,-490.0,0.00027397,3]
[368531403,1751197788606,-490.0,0.00027397,3]
[368531404,1751197788615,-490.0,0.00027397,3]
[368531405,1751197788624,-490.0,0.00027397,3]
[368531406,1751197788634,-492.73908956,0.00027397,3]
[368531407,1751197788644,-490.0,0.00027397,3]
[368531408,1751197788654,-490.0,0.00027397,3]
[368531409,1751197788663,-669.48,0.00027397,3]
[368531410,1751197788673,-490.0,0.00027397,3]
[368531411,1751197788684,-490.0,0.00027397,3]
[368531412,1751197788694,-490.0,0.00027397,3]
[368531413,1751197788703,-490.0,0.00027397,3]
[368531414,1751197788712,-490.0,0.00027397,3]
[368531415,1751197788721,-490.0,0.00027397,3]
[368531416,1751197788731,-490.0,0.00027397,3]
[368531417,1751197788740,-490.0,0.00027397,3]
[368531418,1751197788750,-490.0,0.00027397,3]
[368531419,1751197788759,-604.76,0.00027397,3]
[368531420,1751197788770,-490.0,0.00027397,3]
[368531421,1751197788779,-490.0,0.00027397,3]
[368531422,1751197788789,-718.18,0.00027397,3]
[368531423,1751197788800,-490.0,0.00027397,3]
[368531424,1751197788810,-490.0,0.00027397,3]
[368531425,1751197788819,-490.0,0.00027397,3]
[368531426,1751197788829,-495.7813604,0.00027397,3]
[368531427,1751197788838,-490.0,0.00027397,3]
[368531428,1751197788848,-490.0,0.00027397,3]
[368531429,1751197788857,-490.0,0.00027397,3]
[368531430,1751197788866,-490.0,0.00027397,3]
[368531431,1751197788876,-490.0,0.00027397,3]
[368531432,1751197788886,-490.0,0.00027397,3]
[368531433,1751197788896,-528.5,0.00027397,3]
[368531434,1751197788905,-490.0,0.00027397,3]
[368531435,1751197788915,-493.66856877,0.00027397,3]
[368531436,1751197788925,-490.0,0.00027397,3]
[368531437,1751197788935,-491.84373018,0.00027397,3]
[368531438,1751197788944,-490.0,0.00027397,3]
[368531439,1751197788953,-490.0,0.00027397,3]
[368531440,1751197788963,-490.0,0.00027397,3]
[368531441,1751197788973,-490.0,0.00027397,3]
[368531442,1751197788982,-490.0,0.00027397,3]
[368531443,1751197788991,-542.6,0.00027397,3]
[368531444,1751197789000,-101.69657003,0.00027397,3]
[368531445,1751197789023,-388.30342997,0.00027397,3]
[368531446,1751197789033,-490.0,0.00027397,3]
[368531447,1751197789043,-490.0,0.00027397,3]
[368531448,1751197789053,-490.0,0.00027397,3]
[368531449,1751197789062,-490.0,0.00027397,3]
[368531450,1751197789072,-492.59786832,0.00027397,3]
[368531451,1751197789082,-490.0,0.00027397,3]
[368531452,1751197789091,-581.37,0.00027397,3]
[368531453,1751197789101,-490.0,0.00027397,3]
[368531454,1751197789111,-490.0,0.00027397,3]
[368531455,1751197789120,-490.0,0.00027397,3]
[368531456,1751197789131,-490.0,0.00027397,3]
[368531457,1751197789141,-490.0,0.00027397,3]
[368531458,1751197789151,-490.0,0.00027397,3]
[368531459,1751197789161,-673.99,0.00027397,3]
[368531460,1751197789170,-490.0,0.00027397,3]
[368531461,1751197789180,-490.79767443,0.00027397,3]
[368531462,1751197789190,-490.0,0.00027397,3]
[368531463,1751197789199,-490.0,0.00027397,3]
[368531464,1751197789209,-490.0,0.00027397,3]
[368531465,1751197789219,-490.0,0.00027397,3]
[368531466,1751197789229,-490.0,0.00027397,3]
[368531467,1751197789239,-500.0,0.00027397,2]
[368531468,1751197789248,-691.9,0.00027397,3]
[368531469,1751197789258,-490.0,0.00027397,3]
[368531470,1751197789268,-492.1388203,0.00027397,3]
[368531471,1751197789278,-490.0,0.00027397,3]
[368531472,1751197789289,-490.0,0.00027397,3]
[368531473,1751197789298,-513.74368128,0.00027397,3]
[368531474,1751197789307,-490.0,0.00027397,3]
[368531475,1751197789322,-490.0,0.00027397,3]
[368531476,1751197789332,-490.0,0.00027397,3]
[368531477,1751197789341,-493.40829153,0.00027397,3]
[368531478,1751197789350,-490.0,0.00027397,3]
[368531479,1751197789360,-490.0,0.00027397,3]
[368531480,1751197789370,-494.37903915,0.00027397,3]
[368531481,1751197789379,-490.0,0.00027397,3]
[368531482,1751197789388,-490.0,0.00027397,3]
[368531483,1751197789398,-174.33674144,0.00027397,3]
[368531484,1751197789407,-490.0,0.00027397,3]
[368531485,1751197789417,-515.74163486,0.00027397,3]
[368531486,1751197789427,-490.0,0.00027397,3]
[368531487,1751197789436,-490.0,0.00027397,3]
[368531488,1751197789446,-990.72,0.00027397,3]
[368531489,1751197789456,-490.0,0.00027397,3]
[368531490,1751197789466,-495.49041752,0.00027397,3]
[368531491,1751197789475,-490.0,0.00027397,3]
[368531492,1751197789484,-490.0,0.00027397,3]
[368531493,1751197789494,-615.70284808,0.00027397,3]
[368531494,1751197789503,-490.0,0.00027397,3]
[368531495,1751197789513,-490.0,0.00027397,3]
[368531496,1751197789522,-492.85634952,0.00027397,3]
[368531497,1751197789531,-490.0,0.00027397,3]
[368531498,1751197789541,-490.0,0.00027397,3]
[368531499,1751197789550,-490.0,0.00027397,3]
[368531500,1751197789559,-1086.98,0.00027397,3]
[368531501,1751197789568,-226.887383,0.00027397,3]
[368531502,1751197789579,-155.1248,0.00027397,3]
[368531503,1751197789588,-490.0,0.00027397,3]
[368531504,1751197789598,-490.0,0.00027397,3]
[368531505,1751197789607,-490.0,0.00027397,3]
[368531506,1751197789616,-490.0,0.00027397,3]